bitfinex/quotes_ETHUSD_20250630
["timestamp","ask_amount","ask_price","bid_price","bid_amount"]
[1751275873030,0.01,2473.1,2473.0,31.12447301]
[1751275873525,0.01,2473.1,2473.0,23.60455801]
[1751275873703,0.01,2473.1,2473.0,21.60315001]
[1751275873904,0.01,2473.1,2473.0,14.04367165]
[1751275874300,0.01,2473.1,2473.0,4.04367165]
[1751275874931,0.01,2473.1,2473.0,4.59367165]
[1751275875132,0.8404,2473.1,2473.0,4.04367165]
[1751275876737,0.8404,2473.1,2472.9,14.24532235]
[1751275879724,0.8404,2473.1,2472.9,10.0]
[1751275879926,1.53137481,2473.1,2472.9,10.0]
[1751275880134,0.70097481,2473.1,2472.9,10.0]
[1751275880306,0.7683,2473.0,2472.9,10.0]
[1751275881835,0.7683,2473.0,2472.7,0.2016]
[1751275882835,0.7683,2473.0,2472.7,4.24575206]
[1751275883528,1.72391922,2473.0,2472.7,4.24575206]
[1751275883732,0.8008,2472.9,2472.5,0.2016]
[1751275883930,0.8008,2472.8,2472.3,0.57]
[1751275884232,0.7826,2472.7,2472.5,10.0]
[1751275885117,0.7683,2472.6,2472.3,0.02]
[1751275885322,0.7683,2472.5,2472.3,0.02]
[1751275885505,0.7683,2472.5,2472.3,4.06479444]
[1751275885704,4.81284425,2472.5,2472.3,0.02]
[1751275885905,0.7645,2472.4,2472.3,0.02]
[1751275886706,0.7645,2472.4,2472.3,4.06481656]
[1751275887333,0.7645,2472.4,2472.3,0.02]
[1751275889159,0.7645,2472.4,2472.3,4.06481656]
[1751275900330,1.0063,2472.6,2472.5,4.04448938]
[1751275900541,0.2016,2472.6,2472.5,4.04448938]
[1751275902637,0.2016,2472.6,2472.4,4.04450301]
[1751275903253,0.814,2472.5,2472.4,4.04450301]
[1751275903454,0.814,2472.5,2472.3,4.06475291]
[1751275904160,0.814,2472.5,2472.4,4.04465296]
[1751275904332,0.814,2472.5,2472.3,4.06475291]
[1751275904333,0.814,2472.5,2472.3,4.06470427]
[1751275904861,0.814,2472.5,2472.4,4.04465296]
[1751275906557,0.814,2472.5,2472.3,4.06472558]
[1751275907461,0.814,2472.5,2472.4,4.04465296]
[1751275909531,0.2016,2472.6,2472.5,4.04448938]
[1751275911462,0.7817,2473.1,2472.7,4.04411515]
[1751275911666,0.2016,2473.0,2472.8,4.04390855]
[1751275912036,0.2016,2473.0,2472.9,4.04383517]
[1751275915752,0.2016,2473.0,2472.8,4.04390767]
[1751275916272,0.2016,2473.0,2472.9,4.04383517]
[1751275917774,0.2016,2473.0,2472.8,4.04392029]
[1751275920458,0.2016,2473.0,2472.7,4.04410357]
[1751275920777,0.2016,2473.0,2472.9,4.04383517]
[1751275922478,0.2016,2473.0,2472.8,4.04389703]
[1751275924078,0.7817,2473.1,2472.7,4.04404341]
[1751275924079,4.8252779,2473.1,2472.7,4.04404341]
[1751275924279,0.2016,2472.8,2472.7,4.04404341]
[1751275934188,0.2016,2472.8,2472.7,4.59404341]
[1751275934375,0.01,2473.1,2473.0,4.04367165]
[1751275934977,0.01,2473.1,2473.0,5.33417165]
[1751275935181,0.01,2473.1,2473.0,5.53577165]
[1751275937900,0.01,2473.1,2472.8,10.7405]
[1751275938202,0.01,2473.1,2473.0,4.04367165]
[1751275938569,0.01,2473.1,2472.9,0.55]
[1751275938914,0.01,2473.1,2473.0,4.04367165]
[1751275939425,0.01,2473.1,2472.8,4.24550003]
[1751275939559,0.01,2473.1,2472.8,14.24550003]
[1751275940502,0.01,2473.1,2472.9,4.04380862]
[1751275941422,0.01,2473.1,2472.8,0.2016]
[1751275941601,0.01,2473.1,2472.8,4.24556854]
[1751275944721,0.01,2473.1,2472.8,0.2016]
[1751275944906,0.01,2473.1,2472.8,4.24547134]
[1751275945114,0.01,2473.1,2472.9,4.04381557]
[1751275947924,0.01,2473.1,2473.0,4.04367165]
[1751275948217,0.01,2473.1,2473.0,4.59367165]
[1751275952123,0.01,2473.1,2473.0,10.86265001]
[1751275952290,0.01,2473.1,2473.0,11.80475001]
[1751275956406,0.01,2473.1,2473.0,21.80475001]
[1751275957746,0.01,2473.1,2473.0,31.24332601]
[1751275960323,0.01,2473.1,2473.0,21.80475001]
[1751275961012,0.01,2473.1,2473.0,14.79527165]
[1751275961728,0.01,2473.1,2473.0,14.04367165]
[1751275961945,0.01,2473.1,2473.0,14.59367165]
[1751275966709,0.01,2473.1,2473.0,0.55]
[1751275966912,0.8082,2473.1,2472.9,10.0]
[1751275967109,1.29436415,2473.1,2472.3,0.7605]
[1751275967342,0.7562,2472.9,2472.6,4.0442614]
[1751275969448,0.7562,2472.9,2472.5,14.24599366]
[1751275969840,0.7562,2472.9,2472.6,4.04432577]
[1751275970029,0.7562,2472.9,2472.7,4.04406803]
[1751275972052,0.7562,2472.9,2472.6,4.0442368]
[1751275973844,0.7562,2472.9,2472.7,4.04409581]
[1751275974242,0.7562,2472.9,2472.6,4.04423305]
[1751275975156,0.7562,2472.9,2472.7,4.04416048]
[1751275975363,0.7562,2472.9,2472.8,4.0439987]
[1751275975654,0.2016,2473.0,2472.8,4.0439987]
[1751275977663,0.2016,2473.0,2472.7,4.04406193]
[1751275977827,0.2016,2473.0,2472.6,6.26897836]
[1751275978028,0.2016,2473.0,2472.6,10.31321365]
[1751275978249,0.2016,2473.0,2472.7,4.04415037]
[1751275978467,0.7784,2472.9,2472.7,4.04415356]
[1751275979534,0.7784,2472.9,2472.8,4.0439987]
[1751275980273,0.2016,2473.0,2472.8,4.0439987]
[1751275980274,0.2016,2473.0,2472.8,4.04383752]
[1751275982061,0.2016,2473.0,2472.9,4.04383517]
[1751275982652,0.2016,2473.0,2472.7,4.04402663]
[1751275983056,0.2016,2473.0,2472.8,4.04398769]
[1751275983259,0.2016,2473.0,2472.9,4.59383517]
[1751275983571,0.01,2473.1,2473.0,5.33417165]
[1751275983744,0.01,2473.1,2473.0,11.80475001]
[1751275984637,0.01,2473.1,2473.0,4.79527165]
[1751275986376,0.01,2473.1,2473.0,14.79527165]
[1751275986544,0.01,2473.1,2473.0,21.06425001]
[1751275986746,0.01,2473.1,2472.8,4.04389796]
[1751275987055,0.8238,2473.0,2472.6,4.76]
[1751275987269,4.86755315,2473.0,2472.5,14.0443865]
[1751275987583,0.2016,2472.8,2472.5,14.0443865]
[1751275987957,0.7654,2472.7,2472.5,14.0443865]
[1751275988156,0.7654,2472.7,2472.6,14.04432581]
[1751275988562,0.2016,2472.8,2472.7,4.04416225]
[1751275990345,0.2016,2472.8,2472.6,14.04423814]
[1751275990547,0.2016,2472.8,2472.6,10.0]
[1751275991380,0.8087,2472.7,2472.6,10.0]
[1751275994175,1.31412237,2472.7,2472.4,4.24616629]
[1751275994377,0.8087,2472.7,2472.4,4.24616629]
[1751275995578,4.85289213,2472.7,2472.4,0.2016]
[1751275995782,0.2016,2472.5,2472.3,0.02]
[1751275996081,0.7881,2472.4,2472.3,0.02]
[1751275998047,5.7406291,2472.4,2472.3,0.02]
[1751276005802,1.69597614,2472.4,2472.3,0.02]
[1751276006002,0.7881,2472.4,2472.3,0.02]
[1751276006212,0.2016,2472.5,2472.3,0.02]
[1751276006498,0.2016,2472.5,2472.3,4.06481146]
[1751276007906,0.2016,2472.5,2472.4,4.04465296]
[1751276008207,0.2016,2472.5,2472.3,4.06476931]
[1751276009912,0.2016,2472.5,2472.4,4.04465296]
[1751276012026,0.2016,2472.5,2472.3,4.80522796]
[1751276012305,0.2016,2472.5,2472.4,4.04465296]
[1751276012713,0.7959,2472.9,2472.6,4.04424355]
[1751276012878,0.2016,2472.7,2472.6,4.04432548]
[1751276013279,0.2016,2472.7,2472.5,4.04439938]
[1751276013519,0.2016,2472.7,2472.4,4.04454566]
[1751276013689,4.2457856,2472.7,2472.3,4.06474121]
[1751276013876,0.2016,2472.5,2472.3,0.02]
[1751276014309,4.87664898,2472.6,2472.3,0.02]
[1751276014496,0.89208788,2472.5,2472.3,0.02]
[1751276018806,4.04465296,2472.4,2472.3,0.02]
[1751276019117,4.93666542,2472.5,2472.3,0.02]
[1751276019685,0.89208788,2472.5,2472.3,0.02]
[1751276022218,0.8323,2472.6,2472.3,0.02]
[1751276022820,4.87665643,2472.6,2472.3,0.02]
[1751276024430,4.87666859,2472.6,2472.3,0.02]
[1751276024605,0.8323,2472.6,2472.3,0.02]
[1751276024789,4.04465296,2472.4,2472.3,0.02]
[1751276026494,4.9367974,2472.4,2472.3,0.02]
[1751276026809,5.6987974,2472.4,2472.3,0.02]
[1751276029224,5.89017077,2472.4,2472.3,0.02]
[1751276029429,15.89017077,2472.4,2472.3,0.02]
[1751276031130,22.15914913,2472.4,2472.3,0.02]
[1751276032225,23.12737173,2472.4,2472.3,0.02]
[1751276034225,22.15914913,2472.4,2472.3,0.02]
[1751276037832,23.12659432,2472.4,2472.3,0.02]
[1751276038202,15.89017077,2472.4,2472.3,0.02]
[1751276041750,15.12817077,2472.4,2472.3,0.02]
[1751276044441,4.04465296,2472.4,2472.3,0.02]
[1751276048448,5.03826562,2472.4,2472.3,0.02]
[1751276048758,6.67023374,2472.4,2472.3,0.02]
[1751276056572,5.86783374,2472.4,2472.3,0.02]
[1751276056757,4.23586562,2472.4,2472.3,0.02]
[1751276063374,0.19121266,2472.4,2472.3,0.7605]
[1751276063576,0.2016,2472.4,2472.3,0.7605]
[1751276065575,4.24625296,2472.4,2472.3,0.02]
[1751276071386,5.07532721,2472.4,2472.3,0.02]
[1751276075293,5.26670566,2472.4,2472.3,0.02]
[1751276080190,6.23649868,2472.4,2472.3,0.02]
[1751276080789,7.02479868,2472.4,2472.3,0.02]
[1751276081869,17.02479868,2472.4,2472.3,0.02]
[1751276085784,17.57479868,2472.4,2472.3,0.02]
[1751276087816,18.78690244,2472.4,2472.3,0.02]
[1751276090293,17.57479868,2472.4,2472.3,0.02]
[1751276090805,18.78690244,2472.4,2472.3,0.02]
[1751276091336,17.57479868,2472.4,2472.3,0.02]
[1751276097616,17.02479868,2472.4,2472.3,0.02]
[1751276097939,16.23649868,2472.4,2472.3,0.02]
[1751276098092,15.40742443,2472.4,2472.3,0.02]
[1751276098294,4.43763141,2472.4,2472.3,0.02]
[1751276098890,4.24625296,2472.4,2472.3,0.02]
[1751276099397,0.2016,2472.4,2472.3,0.7605]
[1751276100627,4.24625296,2472.4,2472.3,0.7605]
[1751276102900,0.2016,2472.4,2472.3,0.7605]
[1751276103820,4.24625296,2472.4,2472.3,0.7605]
[1751276105541,5.0753275,2472.4,2472.3,0.02]
[1751276106034,5.8328275,2472.4,2472.3,0.02]
[1751276106235,6.99182826,2472.4,2472.3,0.02]
[1751276107549,16.99182826,2472.4,2472.3,0.02]
[1751276109507,17.54182826,2472.4,2472.3,0.02]
[1751276110609,48.75393202,2472.4,2472.3,0.02]
[1751276116059,47.54182826,2472.4,2472.3,0.02]
[1751276117177,48.75152929,2472.4,2472.3,0.02]
[1751276126278,18.75152929,2472.4,2472.3,0.02]
[1751276128177,17.54182826,2472.4,2472.3,0.02]
[1751276129184,18.75152929,2472.4,2472.3,0.02]
[1751276133780,17.54182826,2472.4,2472.3,0.02]
[1751276134497,19.15779425,2472.4,2472.3,0.02]
[1751276137786,17.54182826,2472.4,2472.3,0.02]
[1751276142789,21.80082826,2472.4,2472.3,0.02]
[1751276142995,17.54182826,2472.4,2472.3,0.02]
[1751276143490,19.96577725,2472.4,2472.3,0.02]
[1751276143692,14.5951438,2472.1,2472.0,0.02]
[1751276143874,15.95574456,2472.1,2472.0,0.02]
[1751276145160,17.57302624,2472.1,2472.0,0.02]
[1751276145576,15.95574456,2472.1,2472.0,0.02]
[1751276146382,17.57220496,2472.1,2472.0,0.02]
[1751276146694,21.39296204,2472.1,2472.0,0.02]
[1751276155707,20.4376242,2472.1,2472.0,0.02]
[1751276155905,5.40574456,2472.1,2472.0,0.02]
[1751276156075,5.40574456,2472.1,2472.0,0.7605]
[1751276156504,5.41574456,2472.1,2472.0,0.7605]
[1751276156800,4.44792831,2472.1,2472.0,0.7605]
[1751276156979,4.44792831,2472.1,2472.0,0.9629]
[1751276157183,0.40278451,2472.1,2472.0,0.7605]
[1751276157395,4.44792831,2472.1,2472.0,0.7605]
[1751276158304,4.2567438,2472.1,2472.0,0.7605]
[1751276160488,0.2116,2472.1,2472.0,0.7605]
[1751276161812,0.2116,2472.1,2472.0,4.80580744]
[1751276162235,0.01,2472.1,2472.0,11.0747858]
[1751276162516,0.01,2472.1,2472.0,4.80580744]
[1751276162818,0.01,2472.1,2472.0,0.7605]
[1751276165610,0.01,2472.1,2472.0,4.80580744]
[1751276177618,0.01,2472.1,2472.0,14.80580744]
[1751276180613,0.01,2472.1,2472.0,4.80580744]
[1751276182115,0.01,2472.1,2472.0,14.80580744]
[1751276187770,0.01,2472.1,2472.0,10.7605]
[1751276188315,0.01,2472.1,2472.0,0.7605]
[1751276188530,0.01,2472.1,2472.0,0.02]
[1751276188531,4.0551438,2472.1,2472.0,0.02]
[1751276188733,4.2567438,2472.1,2472.0,0.02]
[1751276190628,0.2116,2472.1,2472.0,0.02]
[1751276190855,0.2116,2472.1,2472.0,4.80580744]
[1751276192562,0.01,2472.1,2472.0,4.80580744]
[1751276193960,0.01,2472.1,2472.0,0.02]
[1751276194458,0.01,2472.1,2472.0,4.06530744]
[1751276196938,0.01,2472.1,2472.0,0.02]
[1751276201980,0.01,2472.1,2472.0,4.06530744]
[1751276202191,0.01,2472.1,2472.0,4.80580744]
[1751276203962,0.01,2472.1,2472.0,15.35580744]
[1751276204280,0.01,2472.1,2472.0,15.55740744]
[1751276211052,0.01,2472.1,2472.0,14.26690744]
[1751276213882,0.01,2472.1,2472.0,4.26690744]
[1751276214769,0.01,2472.1,2472.0,0.2216]
[1751276214975,0.01,2472.1,2472.0,0.02]
[1751276215184,4.8370438,2472.1,2472.0,0.02]
[1751276215489,0.01,2472.1,2472.0,0.02]
[1751276215691,0.2116,2472.1,2472.0,0.02]
[1751276221711,5.16508551,2472.1,2472.0,0.02]
[1751276222004,5.98038551,2472.1,2472.0,0.02]
[1751276229701,1.0269,2472.1,2472.0,0.02]
[1751276229905,0.2116,2472.1,2472.0,0.02]
[1751276236278,0.2116,2472.1,2472.0,4.06530744]
[1751276236478,0.01,2472.1,2472.0,4.06530744]
[1751276240884,0.01,2472.1,2472.0,4.80580744]
[1751276242951,0.01,2472.1,2472.0,0.02]
[1751276242952,4.0551438,2472.1,2472.0,0.02]
[1751276244707,4.8295438,2472.1,2472.0,0.02]
[1751276245106,5.0210397,2472.1,2472.0,0.02]
[1751276247537,4.8295438,2472.1,2472.0,0.02]
[1751276247741,5.02094876,2472.1,2472.0,0.02]
[1751276247941,6.02443749,2472.1,2472.0,0.02]
[1751276254614,5.83303253,2472.1,2472.0,0.02]
[1751276260622,1.78788873,2472.1,2472.0,0.02]
[1751276260969,0.01,2472.1,2472.0,0.02]
[1751276262261,4.0551438,2472.1,2472.0,0.02]
[1751276262422,4.8622438,2472.1,2472.0,0.02]
[1751276270477,5.83163516,2472.1,2472.0,0.02]
[1751276270845,7.44619642,2472.1,2472.0,0.02]
[1751276273083,7.6376546,2472.1,2472.0,0.02]
[1751276276163,17.6376546,2472.1,2472.0,0.02]
[1751276280650,17.63749925,2472.1,2472.0,0.02]
[1751276301698,16.83039925,2472.1,2472.0,0.02]
[1751276304198,17.65999925,2472.1,2472.0,0.02]
[1751276307612,23.92897761,2472.1,2472.0,0.02]
[1751276307782,25.14016241,2472.1,2472.0,0.02]
[1751276315020,16.83039925,2472.1,2472.0,0.02]
[1751276315825,15.21583799,2472.1,2472.0,0.02]
[1751276316904,15.97813799,2472.1,2472.0,0.02]
[1751276323025,15.21583799,2472.1,2472.0,0.02]
[1751276325054,5.21583799,2472.1,2472.0,0.02]
[1751276325214,5.21583799,2472.1,2472.0,0.7605]
[1751276326354,4.24644663,2472.1,2472.0,0.7605]
[1751276327532,0.20130283,2472.1,2472.0,0.7605]
[1751276327733,0.20130283,2472.1,2472.0,10.7605]
[1751276327923,0.40290283,2472.1,2472.0,14.80580744]
[1751276328122,0.20130283,2472.1,2472.0,4.80580744]
[1751276329347,0.01,2472.1,2472.0,4.80580744]
[1751276329549,0.20130283,2472.1,2472.0,4.80580744]
[1751276329748,0.01,2472.1,2472.0,14.80580744]
[1751276335664,0.01,2472.1,2472.0,10.7605]
[1751276336263,4.0551438,2472.1,2472.0,10.7605]
[1751276336441,4.0551438,2472.1,2472.0,0.7605]
[1751276336643,4.99156388,2472.1,2472.0,0.02]
[1751276337162,4.1815493,2472.1,2472.0,0.02]
[1751276337360,0.2116,2472.1,2472.0,0.02]
[1751276337529,0.2116,2472.1,2472.0,0.7605]
[1751276341464,0.2116,2472.1,2472.0,14.80580744]
[1751276341848,0.2116,2472.1,2472.0,10.7605]
[1751276342761,0.2116,2472.1,2472.0,0.7605]
[1751276343472,0.2116,2472.1,2472.0,0.02]
[1751276343672,4.2567438,2472.1,2472.0,0.02]
[1751276343872,0.2116,2472.1,2472.0,0.02]
[1751276344663,4.2567438,2472.1,2472.0,0.02]
[1751276345071,0.2116,2472.1,2472.0,0.02]
[1751276348577,4.2567438,2472.1,2472.0,0.02]
[1751276349182,0.2116,2472.1,2472.0,0.02]
[1751276350178,4.2567438,2472.1,2472.0,0.02]
[1751276352545,5.0869235,2472.1,2472.0,0.02]
[1751276357784,11.15430186,2472.1,2472.0,0.02]
[1751276358081,13.02115101,2472.1,2472.0,0.02]
[1751276358867,6.75217265,2472.1,2472.0,0.02]
[1751276359184,5.78262965,2472.1,2472.0,0.02]
[1751276362510,6.7513406,2472.1,2472.0,0.02]
[1751276365082,16.7513406,2472.1,2472.0,0.02]
[1751276365280,17.9625254,2472.1,2472.0,0.02]
[1751276365484,17.96026397,2472.1,2472.0,0.02]
[1751276365792,18.51026397,2472.1,2472.0,0.02]
[1751276366162,47.3013406,2472.1,2472.0,0.02]
[1751276367366,48.50920639,2472.1,2472.0,0.02]
[1751276370102,47.95920639,2472.1,2472.0,0.02]
[1751276370300,46.7513406,2472.1,2472.0,0.02]
[1751276370491,16.7513406,2472.1,2472.0,0.02]
[1751276373571,7.47684415,2472.2,2472.0,0.02]
[1751276373775,44.0451438,2472.1,2472.0,0.02]
[1751276373977,4.0451438,2472.1,2472.0,0.02]
[1751276376692,4.8371438,2472.1,2472.0,0.02]
[1751276377404,9.0961438,2472.1,2472.0,0.02]
[1751276377606,15.3871438,2472.1,2472.0,0.02]
[1751276377900,15.3871438,2472.1,2471.4,0.02]
[1751276377901,11.13680419,2471.5,2471.4,0.02]
[1751276380508,11.68680419,2471.5,2471.4,0.02]
[1751276380714,34.59628955,2471.4,2471.3,0.02]
[1751276380895,45.35228955,2471.4,2471.3,0.02]
[1751276381211,53.62461379,2471.4,2471.3,0.02]
[1751276382418,10.7806,2471.2,2469.3,10.0]
[1751276382710,10.7806,2471.2,2469.2,6.47424276]
[1751276382711,51.09619538,2471.2,2470.0,0.7553]
[1751276385224,52.30310319,2471.2,2470.0,0.7553]
[1751276385529,56.31642743,2471.2,2470.0,0.7553]
[1751276385690,57.40763033,2471.2,2470.0,0.7553]
[1751276386698,65.23763033,2471.2,2470.0,0.7553]
[1751276388303,65.78763033,2471.2,2469.6,14.04921273]
[1751276388520,65.78763033,2471.2,2470.3,0.7613]
[1751276390511,35.78763033,2471.2,2470.3,0.7613]
[1751276390713,65.78763033,2471.2,2470.3,0.7613]
[1751276392939,60.01739828,2471.2,2470.6,0.7662]
[1751276398543,30.90479828,2471.2,2470.6,0.7662]
[1751276400130,5.13781992,2471.2,2470.9,0.7996]
[1751276400330,16.80581992,2471.2,2470.9,0.7996]
[1751276406775,23.83329828,2471.2,2470.5,0.8505]
[1751276406981,27.84662252,2471.2,2470.5,0.8505]
[1751276407178,29.05353033,2471.2,2470.5,0.8505]
[1751276408256,27.84662252,2471.2,2470.5,0.8505]
[1751276408641,23.83329828,2471.2,2470.5,0.8505]
[1751276408837,23.07479828,2471.2,2470.5,0.8505]
[1751276409082,23.07479828,2471.2,2470.9,0.8013]
[1751276412664,24.39899828,2471.2,2470.6,0.801]
[1751276412870,4.04759977,2470.6,2470.5,0.02]
[1751276413175,6.81357928,2470.6,2470.5,0.02]
[1751276415749,5.84410447,2470.6,2470.5,0.02]
[1751276416068,12.37810447,2470.6,2470.5,0.02]
[1751276416269,13.34757928,2470.6,2470.5,0.02]
[1751276419191,13.34757785,2470.6,2470.5,0.02]
[1751276419546,13.34757785,2470.6,2470.5,0.8269]
[1751276423303,21.88675092,2470.6,2470.5,0.02]
[1751276423514,31.88675092,2470.6,2470.5,0.02]
[1751276424878,31.08375092,2470.6,2470.5,0.02]
[1751276425412,24.81477256,2470.6,2470.5,0.02]
[1751276426189,24.81477659,2470.6,2470.5,0.02]
[1751276427507,31.08375495,2470.6,2470.5,0.02]
[1751276434186,31.84675495,2470.6,2470.5,0.02]
[1751276435289,33.60366276,2470.6,2470.5,0.02]
[1751276435490,32.39675495,2470.6,2470.5,0.02]
[1751276437815,33.60784312,2470.6,2470.5,0.02]
[1751276442322,32.39675495,2470.6,2470.5,0.02]
[1751276446029,64.01321535,2470.6,2470.5,0.02]
[1751276446226,4.04891084,2469.8,2469.7,0.7892]
[1751276446525,12.37841814,2469.8,2469.7,0.7892]
[1751276447094,4.04986582,2469.3,2469.0,0.8253]
[1751276447429,0.2024,2469.1,2469.0,0.8253]
[1751276448423,0.2024,2469.1,2469.0,4.87552276]
[1751276448999,0.2024,2469.1,2469.0,11.14450112]
[1751276450629,0.2024,2469.1,2469.0,21.14450112]
[1751276450941,0.2024,2469.1,2469.0,14.87552276]
[1751276451933,0.2024,2469.1,2469.0,10.8253]
[1751276452234,0.2024,2469.1,2469.0,14.87552276]
[1751276453438,0.2024,2469.1,2469.0,0.8253]
[1751276454433,4.25245872,2469.1,2469.0,0.8253]
[1751276456536,0.2024,2469.1,2468.5,0.7852]
[1751276456736,0.2024,2468.6,2468.5,0.7852]
[1751276456928,0.2024,2468.6,2468.5,1.26885006]
[1751276458234,4.25327904,2468.6,2468.5,0.7852]
[1751276459722,0.2024,2468.6,2468.5,0.7852]
[1751276460117,4.25327904,2468.6,2468.5,0.7852]
[1751276460758,0.2024,2468.6,2468.5,0.7852]
[1751276461043,4.25327904,2468.6,2468.5,0.7852]
[1751276462850,4.25327904,2468.6,2468.1,0.8242]
[1751276462851,0.2024,2468.6,2468.1,0.8242]
[1751276463152,0.2024,2468.3,2468.1,0.8242]
[1751276463519,4.25377244,2468.3,2468.1,0.8242]
[1751276464249,0.2024,2468.3,2468.1,0.8242]
[1751276464450,4.25380415,2468.3,2468.1,0.8242]
[1751276464652,0.2024,2468.3,2468.1,0.8242]
[1751276470265,0.2024,2468.3,2468.1,4.87587829]
[1751276470562,0.2024,2468.3,2468.1,0.8242]
[1751276471769,0.2024,2468.3,2468.2,4.05153553]
[1751276471943,0.2024,2468.3,2468.2,0.7913]
[1751276472539,0.2024,2468.3,2468.2,4.84283553]
[1751276473858,0.2024,2468.6,2468.3,4.85677161]
[1751276474865,0.2024,2468.6,2468.3,0.8055]
[1751276475037,4.05094089,2468.6,2468.3,0.8055]
[1751276475237,0.2024,2468.4,2468.3,0.8055]
[1751276479559,4.25360725,2468.4,2468.1,0.7866]
[1751276480376,0.7904,2468.7,2468.1,0.7866]
[1751276480377,4.2537857,2468.3,2468.1,0.7866]
[1751276480956,0.2024,2468.3,2468.1,0.7866]
[1751276481561,4.25379651,2468.3,2468.1,0.7866]
[1751276481766,0.2024,2468.3,2468.1,0.7866]
[1751276482977,4.25379608,2468.3,2468.1,0.7866]
[1751276483178,4.05153553,2468.2,2468.1,0.7866]
[1751276483379,4.05161747,2468.2,2467.9,10.7925]
[1751276483551,0.2024,2468.1,2467.9,10.7925]
[1751276484249,4.25411946,2468.1,2467.9,10.7925]
[1751276484452,4.05186385,2468.0,2467.9,10.0]
[1751276484651,4.05179983,2468.1,2467.9,10.0]
[1751276484845,4.05186385,2468.0,2467.9,10.0]
[1751276485083,0.2024,2467.9,2467.7,0.7549]
[1751276485651,0.2024,2467.9,2467.7,4.80724358]
[1751276486252,0.2024,2467.9,2467.8,0.8138]
[1751276486549,0.2024,2467.9,2467.8,4.86599223]
[1751276488276,0.2024,2467.9,2467.8,0.8138]
[1751276489280,0.2024,2467.9,2467.8,4.86599223]
[1751276489488,0.2024,2467.9,2467.8,15.41599223]
[1751276489690,0.7596,2468.6,2468.1,0.7942]
[1751276489691,0.2024,2468.3,2468.1,0.7942]
[1751276490260,0.2024,2468.3,2467.8,0.2024]
[1751276490466,4.2538397,2468.3,2467.9,4.05200291]
[1751276490676,0.2024,2468.3,2467.9,4.05200291]
[1751276492556,4.05138106,2468.3,2467.9,4.05200291]
[1751276492779,0.2024,2468.1,2467.9,4.05200291]
[1751276493789,1.673,2468.4,2467.7,10.8164]
[1751276494089,0.2024,2467.9,2467.8,14.05219223]
[1751276494279,0.2024,2467.9,2467.8,10.0]
[1751276495770,0.2024,2467.9,2467.8,14.05219223]
[1751276497267,0.2024,2467.9,2467.8,10.0]
[1751276497794,0.2024,2467.9,2467.8,14.05219223]
[1751276498996,0.2024,2467.9,2467.8,10.0]
[1751276499384,4.05110561,2468.5,2468.0,4.05178956]
[1751276499579,4.826787,2468.6,2468.0,10.32070375]
[1751276499894,0.7758,2468.6,2468.1,4.05168426]
[1751276500086,5.72377786,2468.7,2468.2,4.83195389]
[1751276500285,0.12658809,2468.6,2468.3,4.05136639]
[1751276500466,1.673,2468.7,2468.4,4.05117387]
[1751276500668,1.673,2468.7,2468.3,4.05134301]
[1751276500871,4.88123689,2468.8,2468.3,4.05134301]
[1751276501071,1.80558182,2468.7,2468.3,4.05134301]
[1751276501371,1.679,2468.7,2468.4,4.05119277]
[1751276501687,1.679,2468.7,2468.5,4.05093456]
[1751276502184,0.1265892,2468.6,2468.1,14.0516139]
[1751276502498,4.05122013,2468.4,2468.1,10.0]
[1751276502703,4.05122013,2468.4,2468.0,4.86015757]
[1751276502866,4.05137596,2468.3,2468.0,10.8083]
[1751276503063,4.05137596,2468.3,2468.0,10.0]
[1751276503286,4.84156773,2468.4,2467.8,4.80402084]
[1751276503485,4.05155161,2468.2,2467.8,4.80402084]
[1751276503798,4.05155161,2468.2,2467.8,0.7519]
[1751276505902,4.05179126,2468.1,2467.8,0.7519]
[1751276506199,4.05179126,2468.1,2467.7,20.60226572]
[1751276506388,4.05179126,2468.1,2467.7,14.05226572]
[1751276506898,4.05180275,2468.1,2467.7,10.0]
[1751276507394,4.05180275,2468.1,2467.7,14.05234967]
[1751276507604,4.05180275,2468.1,2467.7,10.0]
[1751276507801,4.05180275,2468.1,2467.7,14.05234538]
[1751276508503,4.05180275,2468.1,2467.7,4.05235601]
[1751276509394,0.2024,2468.0,2467.7,4.05235601]
[1751276510604,0.2024,2468.0,2467.8,4.05219161]
[1751276510811,0.2024,2468.0,2467.7,4.05227836]
[1751276511271,0.2024,2468.0,2467.6,0.8154]
[1751276511607,4.05244166,2467.7,2467.3,14.05300752]
[1751276511809,4.05244166,2467.7,2467.2,14.81178877]
[1751276512106,4.05225728,2467.8,2467.3,4.05300721]
[1751276512603,4.0523694,2467.7,2467.3,4.05300721]
[1751276512999,4.86175548,2467.8,2467.3,4.05300721]
[1751276513296,4.05236642,2467.7,2467.3,4.05300721]
[1751276513492,1.679,2467.7,2467.2,0.7587]
[1751276513803,1.679,2467.7,2467.2,4.05313171]
[1751276513804,4.05258329,2467.6,2467.2,4.05313171]
[1751276514104,5.73143143,2467.7,2467.3,4.05300132]
[1751276514303,4.05275269,2467.5,2467.0,4.87466832]
[1751276514812,4.05275269,2467.5,2467.1,10.0]
[1751276515479,4.05268692,2467.5,2467.1,10.0]
[1751276515672,4.05261778,2467.6,2467.1,14.05324161]
[1751276516012,7.3685,2467.8,2467.0,4.87470902]
[1751276516013,1.679,2467.8,2467.4,14.84956684]
[1751276517112,1.679,2467.8,2467.5,4.05264516]
[1751276517534,4.05213254,2467.9,2467.5,4.05264516]
[1751276517817,1.679,2467.8,2467.4,14.84955817]
[1751276518818,4.05235644,2467.7,2467.4,0.7968]
[1751276519106,4.05266099,2467.6,2467.2,10.0]
[1751276519276,4.84420085,2467.7,2467.2,10.0]